fUSD/lending_fUSD_20260605
["ID","MTS","AMOUNT","RATE_DAILY","PERIOD"]
[424170679,1780626652000,-6729.72481802,0.000205,2]
[424170681,1780626652000,-150.0,0.0002058,2]
[424170686,1780626652000,-150.39120637,0.0002058,2]
[424170677,1780626652000,-7175.40989862,0.000205,2]
[424170710,1780626652000,-151.0,0.00020764,2]
[424170692,1780626652000,-151.0,0.00020764,2]
[424170712,1780626652000,-151.0,0.00020764,2]
[424170744,1780626652000,-215.77576141,0.000209,30]
[424170743,1780626652000,-26296.27891397,0.000209,30]
[424170737,1780626652000,-10645.30346355,0.000208,2]
[424170738,1780626652000,-6729.72481802,0.000208,2]
[424170742,1780626652000,-422.80348198,0.00020841,2]
[424170741,1780626652000,-1000.0,0.00020841,2]
[424170748,1780626652000,-1208.931296,0.00021,2]
[424170750,1780626652000,-453.0,0.00021,2]
[424170751,1780626652000,-512.0,0.00021,2]
[424170752,1780626652000,-2710.0,0.00021,2]
[424170740,1780626652000,-233439.72378349,0.0002083,2]
[424170753,1780626652000,-2529.0,0.00021,2]
[424170755,1780626652000,-914.0,0.00021,2]
[424170754,1780626652000,-3108.0,0.00021,2]
[424170758,1780626652000,-200.01508657,0.00021,2]
[424170757,1780626652000,-1211.88621371,0.00021,2]
[424170760,1780626652000,-729.0,0.00021,2]
[424170759,1780626652000,-3579.0,0.00021,2]
[424170761,1780626652000,-686.0,0.00021,2]
[424170763,1780626652000,-3521.0,0.00021,2]
[424170762,1780626652000,-2117.59113689,0.00021,2]
[424170713,1780626652000,-500.0,0.00020764,2]
[424170756,1780626652000,-590.0,0.00021,2]
[424170739,1780626652000,-150.0,0.00020819,3]
[424170749,1780626652000,-761.0,0.00021,2]
[424170747,1780626652000,-2000.0,0.00020937,2]
[424170714,1780626652000,-151.0,0.00020764,2]
[424170745,1780626652000,-9035.0,0.00020922,2]
[424170716,1780626652000,-151.0,0.00020764,2]
[424170717,1780626652000,-500.0,0.00020764,2]
[424170720,1780626652000,-151.0,0.00020764,2]
[424170719,1780626652000,-500.0,0.00020764,2]
[424170718,1780626652000,-151.0,0.00020764,2]
[424170723,1780626652000,-151.0,0.00020764,2]
[424170734,1780626652000,-151.0,0.00020764,2]
[424170725,1780626652000,-151.0,0.00020764,2]
[424170724,1780626652000,-500.0,0.00020764,2]
[424170727,1780626652000,-151.0,0.00020764,2]
[424170715,1780626652000,-500.0,0.00020764,2]
[424170726,1780626652000,-500.0,0.00020764,2]
[424170746,1780626652000,-33250.5141,0.00020937,2]
[424170736,1780626652000,-7175.40989862,0.000208,2]
[424170733,1780626652000,-151.0,0.00020764,2]
[424170730,1780626652000,-151.0,0.00020764,2]
[424170735,1780626652000,-2117.59113689,0.000208,2]
[424170731,1780626652000,-151.0,0.00020764,2]
[424170729,1780626652000,-151.0,0.00020764,2]
[424170732,1780626652000,-151.0,0.00020764,2]
[424170728,1780626652000,-151.0,0.00020764,2]
[424170807,1780626653000,-152.0,0.00021606,2]
[424170803,1780626653000,-152.0,0.00021606,2]
[424170802,1780626653000,-152.0,0.00021606,2]
[424170804,1780626653000,-152.0,0.00021606,2]
[424170798,1780626653000,-6729.72481802,0.000216,2]
[424170788,1780626653000,-10645.30346355,0.000214,2]
[424170801,1780626653000,-152.0,0.00021606,2]
[424170797,1780626653000,-10645.30346355,0.000216,2]
[424170793,1780626653000,-58472.50464696,0.000215,2]
[424170799,1780626653000,-743.50770149,0.00021606,2]
[424170806,1780626653000,-152.0,0.00021606,2]
[424170800,1780626653000,-500.0,0.00021606,2]
[424170805,1780626653000,-152.0,0.00021606,2]
[424170813,1780626653000,-1030.0,0.00021606,2]
[424170819,1780626653000,-279.9045709,0.00021606,2]
[424170808,1780626653000,-152.0,0.00021606,2]
[424170810,1780626653000,-152.0,0.00021606,2]
[424170812,1780626653000,-151.0,0.00021606,2]
[424170814,1780626653000,-1068.11,0.00021606,2]
[424170811,1780626653000,-152.0,0.00021606,2]
[424170815,1780626653000,-1107.63007,0.00021606,2]
[424170816,1780626653000,-174.61919141,0.00021606,2]
[424170818,1780626653000,-1148.61238259,0.00021606,2]
[424170817,1780626653000,-578.20924308,0.00021606,2]
[424170791,1780626653000,-500.0,0.00021437,2]
[424170820,1780626653000,-1191.11104074,0.00021606,2]
[424170809,1780626653000,-152.0,0.00021606,2]
[424170789,1780626653000,-6729.72481802,0.000214,2]
[424170771,1780626653000,-3767.0,0.00021198,5]
[424170790,1780626653000,-500.0,0.00021437,2]
[424170822,1780626653000,-693.39197629,0.00021606,2]
[424170767,1780626653000,-6729.72481802,0.00021,2]
[424170770,1780626653000,-526.0,0.00021,2]
[424170768,1780626653000,-997.0,0.00021,2]
[424170769,1780626653000,-1794.0,0.00021,2]
[424170766,1780626653000,-10645.30346355,0.00021,2]
[424170764,1780626653000,-1069.84452551,0.00021,2]
[424170765,1780626653000,-7175.40989862,0.00021,2]
[424170772,1780626653000,-4161.0,0.00021198,5]
[424170774,1780626653000,-1069.84452551,0.000212,2]
[424170776,1780626653000,-10645.30346355,0.000212,2]
[424170775,1780626653000,-7175.40989862,0.000212,2]
[424170777,1780626653000,-6729.72481802,0.000212,2]
[424170773,1780626653000,-2117.59113689,0.000212,2]
[424170781,1780626653000,-151.0,0.00021312,2]
[424170782,1780626653000,-2157.14243826,0.00021312,2]
[424170778,1780626653000,-927.87,0.00021205,2]
[424170780,1780626653000,-200.0,0.00021312,2]
[424170779,1780626653000,-26933.0,0.00021234,2]
[424170784,1780626653000,-677.49,0.000214,2]
[424170783,1780626653000,-4775.8,0.0002137,2]
[424170795,1780626653000,-1069.84452551,0.000216,2]
[424170787,1780626653000,-7175.40989862,0.000214,2]
[424170786,1780626653000,-1069.84452551,0.000214,2]
[424170785,1780626653000,-2117.59113689,0.000214,2]
[424170794,1780626653000,-225.69394633,0.000215,2]
[424170796,1780626653000,-7175.40989862,0.000216,2]
[424170792,1780626653000,-500.0,0.00021439,2]
[424170823,1780626653000,-151.0,0.00021606,2]
[424170821,1780626653000,-200.0,0.00021606,2]
[424170824,1780626653000,-264.95651361,0.00021606,2]
[424170866,1780626653000,-1069.84452551,0.000219,2]
[424170867,1780626653000,-5000.0,0.00021918,2]
[424170855,1780626653000,-10645.30346355,0.000218,2]
[424170858,1780626653000,-801.85129954,0.00021826,2]
[424170857,1780626653000,-151.0,0.00021826,2]
[424170865,1780626653000,-2117.59113689,0.000219,2]
[424170860,1780626653000,-151.0,0.0002186,2]
[424170863,1780626653000,-151.0,0.00021881,2]
[424170864,1780626653000,-831.51979762,0.00021881,2]
[424170861,1780626653000,-2236.95670847,0.0002186,2]
[424170859,1780626653000,-200.0,0.0002186,2]
[424170862,1780626653000,-831.51979762,0.00021881,2]
[424170856,1780626653000,-801.85129954,0.00021826,2]
[424170869,1780626653000,-150.0,0.00021918,2]
[424170877,1780626653000,-894.19061325,0.00021991,2]
[424170868,1780626653000,-1007.45,0.00021918,2]
[424170875,1780626653000,-894.19061325,0.00021991,2]
[424170871,1780626653000,-862.28603014,0.00021936,2]
[424170879,1780626653000,-170.11898283,0.00021997,2]
[424170872,1780626653000,-151.0,0.00021936,2]
[424170876,1780626653000,-151.0,0.00021991,2]
[424170878,1780626653000,-200.0,0.00021996,2]
[424170874,1780626653000,-173.4045785,0.00021957,2]
[424170873,1780626653000,-862.28603014,0.00021936,2]
[424170881,1780626653000,-1208.931296,0.00022,2]
[424170880,1780626653000,-450.0,0.00022,2]
[424170870,1780626653000,-1548.0,0.00021927,2]
[424170854,1780626653000,-887.0,0.00021775,2]
[424170825,1780626653000,-1235.18214925,0.00021606,2]
[424170852,1780626653000,-151.0,0.00021771,2]
[424170882,1780626653000,-761.0,0.00022,2]
[424170826,1780626653000,-1280.88388877,0.00021606,2]
[424170828,1780626653000,-1328.27659266,0.00021606,2]
[424170831,1780626653000,-209.40437684,0.00021606,2]
[424170827,1780626653000,-209.40437684,0.00021606,2]
[424170829,1780626653000,-200.0,0.00021606,2]
[424170830,1780626653000,-209.40437684,0.00021606,2]
[424170845,1780626653000,-500.0,0.00021699,2]
[424170832,1780626653000,-1377.42282658,0.00021606,2]
[424170836,1780626653000,-693.39197629,0.00021606,2]
[424170839,1780626653000,-1000.0,0.00021606,2]
[424170840,1780626653000,-1000.0,0.00021606,2]
[424170835,1780626653000,-1428.38747117,0.00021606,2]
[424170833,1780626653000,-693.39197629,0.00021606,2]
[424170843,1780626653000,-151.0,0.00021661,2]
[424170834,1780626653000,-721.12765534,0.00021606,2]
[424170851,1780626653000,-773.24136889,0.00021771,2]
[424170853,1780626653000,-773.24136889,0.00021771,2]
[424170850,1780626653000,-745.65223615,0.00021716,2]
[424170848,1780626653000,-745.65223615,0.00021716,2]
[424170847,1780626653000,-1280.36,0.00021704,2]
[424170849,1780626653000,-151.0,0.00021716,2]
[424170844,1780626653000,-719.04747942,0.00021661,2]
[424170841,1780626653000,-258.07256333,0.00021606,2]
[424170838,1780626653000,-155.45074961,0.00021606,2]
[424170842,1780626653000,-719.04747942,0.00021661,2]
[424170837,1780626653000,-1000.0,0.00021606,2]
[424170846,1780626653000,-2117.59113689,0.000217,2]
[424170921,1780626654000,-997.16350561,0.00022156,2]
[424170920,1780626654000,-151.0,0.00022156,2]
[424170919,1780626654000,-719.04747942,0.00022154,2]
[424170925,1780626654000,-200.0,0.00022251,2]
[424170926,1780626654000,-500.0,0.00022329,2]
[424170915,1780626654000,-200.0,0.00022154,2]
[424170917,1780626654000,-217.15233878,0.00022154,2]
[424170918,1780626654000,-1481.2378076,0.00022154,2]
[424170914,1780626654000,-217.15233878,0.00022154,2]
[424170910,1780626654000,-500.0,0.00022154,2]
[424170916,1780626654000,-217.15233878,0.00022154,2]
[424170924,1780626654000,-168.50338167,0.0002225,2]
[424170936,1780626654000,-158.41,0.00022426,2]
[424170922,1780626654000,-997.16350561,0.00022156,2]
[424170938,1780626654000,-158.41,0.00022426,2]
[424170928,1780626654000,-712.06811606,0.00022407,2]
[424170927,1780626654000,-4289.6,0.00022353,2]
[424170929,1780626654000,-712.06811605,0.00022407,2]
[424170937,1780626654000,-158.41,0.00022426,2]
[424170930,1780626654000,-712.06811605,0.00022407,2]
[424170934,1780626654000,-158.41,0.00022426,2]
[424170932,1780626654000,-151.0,0.00022408,2]
[424170935,1780626654000,-158.41,0.00022426,2]
[424170931,1780626654000,-200.0,0.00022408,2]
[424170933,1780626654000,-2319.72410669,0.00022408,2]
[424170913,1780626654000,-200.0,0.00022154,2]
[424170923,1780626654000,-308.24,0.000222,2]
[424170908,1780626654000,-244.2914288,0.0002211,2]
[424170902,1780626654000,-1124.0,0.00022075,2]
[424170911,1780626654000,-181.08010149,0.00022154,2]
[424170940,1780626654000,-158.41,0.00022426,2]
[424170884,1780626654000,-512.0,0.00022,2]
[424170891,1780626654000,-300.0,0.00022,2]
[424170886,1780626654000,-2529.0,0.00022,2]
[424170887,1780626654000,-914.0,0.00022,2]
[424170888,1780626654000,-590.0,0.00022,2]
[424170890,1780626654000,-160.0,0.00022,2]
[424170883,1780626654000,-453.0,0.00022,2]
[424170885,1780626654000,-2710.0,0.00022,2]
[424170889,1780626654000,-3579.0,0.00022,2]
[424170892,1780626654000,-729.0,0.00022,2]
[424170894,1780626654000,-3521.0,0.00022,2]
[424170912,1780626654000,-290.26104002,0.00022154,2]
[424170895,1780626654000,-10645.30346355,0.00022,2]
[424170901,1780626654000,-927.27566594,0.00022046,2]
[424170897,1780626654000,-1794.0,0.00022,2]
[424170899,1780626654000,-927.27566594,0.00022046,2]
[424170893,1780626654000,-686.0,0.00022,2]
[424170898,1780626654000,-526.0,0.00022,2]
[424170900,1780626654000,-151.0,0.00022046,2]
[424170904,1780626654000,-500.0,0.0002208,2]
[424170905,1780626654000,-151.0,0.00022101,2]
[424170906,1780626654000,-961.58486558,0.00022101,2]
[424170903,1780626654000,-466.05324864,0.0002208,2]
[424170907,1780626654000,-961.58486558,0.00022101,2]
[424170909,1780626654000,-771.01748644,0.00022154,2]
[424170896,1780626654000,-997.0,0.00022,2]
[424170941,1780626654000,-1033.37,0.00022466,2]
[424170950,1780626654000,-28596.25,0.00022691,2]
[424171001,1780626654000,-150.52165905,0.00023244,2]
[424170963,1780626654000,-1536.04360648,0.00022702,2]
[424170974,1780626654000,-288.06284147,0.00022956,2]
[424170984,1780626654000,-914.0,0.00023,2]
[424170975,1780626654000,-2405.55389863,0.00022956,2]
[424170967,1780626654000,-1100.0,0.00022731,2]
[424170972,1780626654000,-2888.0,0.00022933,2]
[424170970,1780626654000,-200.0,0.00022776,2]
[424170978,1780626654000,-761.0,0.00023,2]
[424170964,1780626654000,-745.65223615,0.00022702,2]
[424170966,1780626654000,-2500.0,0.00022731,2]
[424170968,1780626654000,-1500.0,0.00022731,7]
[424170981,1780626654000,-2710.0,0.00023,2]
[424170976,1780626654000,-156.587,0.00022975,2]
[424170988,1780626654000,-686.0,0.00023,2]
[424170990,1780626654000,-997.0,0.00023,2]
[424170989,1780626654000,-3521.0,0.00023,2]
[424170998,1780626654000,-186.14624627,0.00023244,2]
[424170997,1780626654000,-186.14624627,0.00023244,2]
[424171000,1780626654000,-186.25097909,0.00023244,2]
[424170999,1780626654000,-150.52165905,0.00023244,2]
[424170994,1780626654000,-12649.0,0.00023014,2]
[424170991,1780626654000,-1794.0,0.00023,2]
[424170993,1780626654000,-526.0,0.00023,2]
[424170995,1780626654000,-321.16017515,0.000232,2]
[424170992,1780626654000,-211.56447807,0.00023,3]
[424170996,1780626654000,-1124.0,0.00023237,2]
[424170939,1780626654000,-158.41,0.00022426,2]
[424170965,1780626654000,-532.28220646,0.0002271,2]
[424170973,1780626654000,-200.0,0.00022956,2]
[424170983,1780626654000,-677.49,0.00023,7]
[424170985,1780626654000,-590.0,0.00023,2]
[424170987,1780626654000,-729.0,0.00023,2]
[424170948,1780626654000,-151.0,0.00022689,7]
[424170943,1780626654000,-151.369457,0.000225,2]
[424170944,1780626654000,-36103.46064728,0.000225,2]
[424170949,1780626654000,-160.90737907,0.00022691,2]
[424170945,1780626654000,-2000.0,0.000225,7]
[424170947,1780626654000,-3666.98518134,0.000226,2]
[424170946,1780626654000,-163.0,0.00022521,2]
[424170951,1780626654000,-536.72,0.00022691,2]
[424170952,1780626654000,-4049.35,0.00022691,2]
[424170953,1780626654000,-3170.68370193,0.000227,2]
[424170962,1780626654000,-225.18697532,0.00022702,2]
[424170954,1780626654000,-799.54513344,0.00022702,2]
[424170959,1780626654000,-225.18697532,0.00022702,2]
[424170942,1780626654000,-1991.45,0.00022466,2]
[424170956,1780626654000,-187.78006524,0.00022702,2]
[424170960,1780626654000,-200.0,0.00022702,2]
[424170982,1780626654000,-2529.0,0.00023,2]
[424170977,1780626654000,-1208.931296,0.00023,2]
[424170971,1780626654000,-500.0,0.00022822,2]
[424170980,1780626654000,-512.0,0.00023,2]
[424170979,1780626654000,-453.0,0.00023,2]
[424170986,1780626654000,-3579.0,0.00023,2]
[424170958,1780626654000,-200.0,0.00022702,2]
[424170961,1780626654000,-225.18697532,0.00022702,2]
[424170955,1780626654000,-500.0,0.00022702,2]
[424170957,1780626654000,-301.0006985,0.00022702,2]
[424170969,1780626654000,-500.0,0.00022743,2]
[424171043,1780626655000,-150.0,0.0002376,2]
[424171042,1780626655000,-150.0,0.0002376,2]
[424171040,1780626655000,-150.0,0.0002376,2]
[424171035,1780626655000,-152.0,0.00023615,30]
[424171041,1780626655000,-150.0,0.0002376,2]
[424171032,1780626655000,-200.0,0.00023556,2]
[424171038,1780626655000,-237.53,0.00023646,2]
[424171031,1780626655000,-1595.13690339,0.0002353,2]
[424171033,1780626655000,-1354.7941438,0.00023572,2]
[424171034,1780626655000,-152.0,0.00023585,30]
[424171045,1780626655000,-859.8060506,0.00023798,2]
[424171039,1780626655000,-150.0,0.0002376,2]
[424171046,1780626655000,-500.0,0.00023798,2]
[424171052,1780626655000,-242.15909246,0.00023798,2]
[424171049,1780626655000,-203.01699416,0.00023798,2]
[424171048,1780626655000,-323.68682015,0.00023798,2]
[424171047,1780626655000,-201.93286098,0.00023798,2]
[424171050,1780626655000,-242.15909246,0.00023798,2]
[424171053,1780626655000,-242.15909246,0.00023798,2]
[424171057,1780626655000,-1208.931296,0.00024,2]
[424171058,1780626655000,-761.0,0.00024,2]
[424171054,1780626655000,-1651.81367706,0.00023798,2]
[424171056,1780626655000,-500.0,0.00024,2]
[424171062,1780626655000,-2710.0,0.00024,2]
[424171051,1780626655000,-200.0,0.00023798,2]
[424171036,1780626655000,-2888.0,0.00023617,2]
[424171044,1780626655000,-161.0,0.0002376,2]
[424171028,1780626655000,-1174.09564159,0.000235,2]
[424171055,1780626655000,-284.72358295,0.00023798,2]
[424171029,1780626655000,-200.0,0.00023504,2]
[424171004,1780626655000,-268.87117407,0.00023244,2]
[424171011,1780626655000,-200.0,0.0002325,2]
[424171007,1780626655000,-829.12830338,0.0002325,2]
[424171002,1780626655000,-268.87117407,0.00023244,2]
[424171005,1780626655000,-268.87117407,0.00023244,2]
[424171008,1780626655000,-500.0,0.0002325,2]
[424171009,1780626655000,-194.72792766,0.0002325,2]
[424171003,1780626655000,-268.87117407,0.00023244,2]
[424171012,1780626655000,-233.5188934,0.0002325,2]
[424171010,1780626655000,-312.13772435,0.0002325,2]
[424171006,1780626655000,-268.87117407,0.00023244,2]
[424171013,1780626655000,-200.0,0.0002325,2]
[424171015,1780626655000,-233.5188934,0.0002325,2]
[424171018,1780626655000,-182.58,0.00023288,2]
[424171017,1780626655000,-773.24136889,0.0002325,2]
[424171016,1780626655000,-1592.87721992,0.0002325,2]
[424171019,1780626655000,-620.0,0.00023288,2]
[424171020,1780626655000,-150.0,0.00023288,2]
[424171014,1780626655000,-233.5188934,0.0002325,2]
[424171021,1780626655000,-1548.0,0.00023352,2]
[424171022,1780626655000,-1280.36,0.00023407,7]
[424171023,1780626655000,-500.0,0.00023425,2]
[424171025,1780626655000,-12851.64,0.0002343,2]
[424171024,1780626655000,-6070.41,0.0002343,2]
[424171027,1780626655000,-280.61209394,0.00023478,2]
[424171037,1780626655000,-152.0,0.00023646,30]
[424171026,1780626655000,-297.76,0.0002343,2]
[424171030,1780626655000,-2494.55939288,0.00023504,2]
[424171059,1780626655000,-453.0,0.00024,2]
[424171117,1780626655000,-164.45695119,0.00024455,2]
[424171061,1780626655000,-1040.04083179,0.00024,2]
[424171095,1780626655000,-152.0,0.00024262,7]
[424171094,1780626655000,-152.0,0.00024262,7]
[424171092,1780626655000,-152.0,0.00024235,7]
[424171108,1780626655000,-209.40437684,0.00024346,2]
[424171107,1780626655000,-500.0,0.00024346,2]
[424171098,1780626655000,-152.0,0.00024289,7]
[424171099,1780626655000,-152.0,0.00024289,7]
[424171102,1780626655000,-200.0,0.00024336,2]
[424171097,1780626655000,-152.0,0.00024262,7]
[424171105,1780626655000,-747.80937859,0.00024345,2]
[424171100,1780626655000,-1444.927299,0.00024302,2]
[424171104,1780626655000,-599.60298507,0.00024345,2]
[424171103,1780626655000,-162.380719,0.00024344,2]
[424171106,1780626655000,-891.61887448,0.00024346,2]
[424171101,1780626655000,-4289.6,0.00024324,2]
[424171109,1780626655000,-335.66323249,0.00024346,2]
[424171110,1780626655000,-332.07378773,0.00024346,2]
[424171111,1780626655000,-190.56121002,0.00024346,2]
[424171120,1780626655000,-200.0,0.000246,2]
[424171121,1780626655000,-2682.57183977,0.000246,2]
[424171112,1780626655000,-251.11897888,0.00024346,2]
[424171113,1780626655000,-1712.93078311,0.00024346,2]
[424171115,1780626655000,-154.28543219,0.00024455,2]
[424171118,1780626655000,-151.0,0.00024515,2]
[424171114,1780626655000,-619.91425233,0.00024398,2]
[424171116,1780626655000,-151.0,0.00024455,2]
[424171060,1780626655000,-512.0,0.00024,2]
[424171093,1780626655000,-500.0,0.0002424,2]
[424171090,1780626655000,-3763.71119265,0.0002421,2]
[424171119,1780626655000,-168.31,0.00024566,2]
[424171091,1780626655000,-152.0,0.00024235,7]
[424171063,1780626655000,-2529.0,0.00024,2]
[424171066,1780626655000,-1257.5843238,0.00024,2]
[424171064,1780626655000,-914.0,0.00024,2]
[424171065,1780626655000,-3600.0,0.00024,2]
[424171068,1780626655000,-3579.0,0.00024,2]
[424171070,1780626655000,-686.0,0.00024,2]
[424171067,1780626655000,-590.0,0.00024,2]
[424171096,1780626655000,-152.0,0.00024262,7]
[424171069,1780626655000,-729.0,0.00024,2]
[424171074,1780626655000,-526.0,0.00024,2]
[424171072,1780626655000,-997.0,0.00024,2]
[424171073,1780626655000,-1794.0,0.00024,2]
[424171076,1780626655000,-2586.85809042,0.00024052,2]
[424171071,1780626655000,-3521.0,0.00024,2]
[424171086,1780626655000,-1548.0,0.00024064,2]
[424171075,1780626655000,-200.0,0.00024052,2]
[424171088,1780626655000,-436.84,0.0002411,2]
[424171087,1780626655000,-1665.86170841,0.00024064,2]
[424171078,1780626655000,-1548.0,0.00024064,2]
[424171080,1780626655000,-1548.0,0.00024064,2]
[424171079,1780626655000,-1548.0,0.00024064,2]
[424171089,1780626655000,-500.0,0.00024128,2]
[424171081,1780626655000,-1548.0,0.00024064,2]
[424171085,1780626655000,-1548.0,0.00024064,2]
[424171082,1780626655000,-1548.0,0.00024064,2]
[424171084,1780626655000,-1548.0,0.00024064,2]
[424171083,1780626655000,-1548.0,0.00024064,2]
[424171077,1780626655000,-1548.0,0.00024064,2]
[424171164,1780626656000,-1814.05518717,0.00025,2]
[424171167,1780626656000,-923.41011367,0.00025,2]
[424171163,1780626656000,-2713.11550237,0.00025,2]
[424171159,1780626656000,-524.14850438,0.00025,2]
[424171161,1780626656000,-210.88009305,0.00025,2]
[424171157,1780626656000,-766.08937479,0.00025,2]
[424171158,1780626656000,-462.0,0.00025,2]
[424171150,1780626656000,-1776.30922209,0.00024894,2]
[424171148,1780626656000,-348.0827721,0.00024894,2]
[424171151,1780626656000,-259.22,0.000249,14]
[424171160,1780626656000,-1132.11673633,0.00025,2]
[424171165,1780626656000,-2532.60406265,0.00025,2]
[424171174,1780626656000,-3092.99737993,0.00025,2]
[424171166,1780626656000,-2000.0,0.00025,2]
[424171169,1780626656000,-296.64429747,0.00025,2]
[424171180,1780626656000,-860695.39575243,0.00025,2]
[424171179,1780626656000,-3588.87531731,0.00025,2]
[424171168,1780626656000,-540.0,0.00025,2]
[424171178,1780626656000,-628.5162284,0.00025,5]
[424171171,1780626656000,-346.53740988,0.00025,2]
[424171123,1780626656000,-151.0,0.00024658,2]
[424171177,1780626656000,-170.05133611,0.00025,2]
[424171175,1780626656000,-7245.15902368,0.00025,2]
[424171170,1780626656000,-620.74641957,0.00025,2]
[424171176,1780626656000,-2236.37109545,0.00025,2]
[424171149,1780626656000,-260.4103811,0.00024894,2]
[424171162,1780626656000,-174.01953729,0.00025,60]
[424171147,1780626656000,-217.15233878,0.00024894,2]
[424171139,1780626656000,-150.0,0.00024658,2]
[424171155,1780626656000,-323.0,0.00025,2]
[424171132,1780626656000,-151.0,0.00024658,2]
[424171125,1780626656000,-151.0,0.00024658,2]
[424171126,1780626656000,-151.0,0.00024658,2]
[424171122,1780626656000,-172.22658536,0.0002465,2]
[424171124,1780626656000,-151.0,0.00024658,2]
[424171127,1780626656000,-539.71,0.00024658,2]
[424171128,1780626656000,-151.0,0.00024658,2]
[424171131,1780626656000,-151.0,0.00024658,2]
[424171130,1780626656000,-151.0,0.00024658,2]
[424171129,1780626656000,-151.0,0.00024658,2]
[424171133,1780626656000,-151.0,0.00024658,2]
[424171135,1780626656000,-151.0,0.00024658,2]
[424171145,1780626656000,-924.60877283,0.00024894,2]
[424171134,1780626656000,-151.0,0.00024658,2]
[424171141,1780626656000,-528.5,0.00024658,2]
[424171136,1780626656000,-151.0,0.00024658,2]
[424171137,1780626656000,-157.755482,0.00024658,2]
[424171144,1780626656000,-510.10298821,0.00024852,2]
[424171143,1780626656000,-200.0,0.00024844,2]
[424171142,1780626656000,-234.46264448,0.00024739,2]
[424171138,1780626656000,-1000.0,0.00024658,2]
[424171146,1780626656000,-500.0,0.00024894,2]
[424171153,1780626656000,-2000.0,0.000249,2]
[424171154,1780626656000,-528.5,0.00024946,7]
[424171152,1780626656000,-677.49,0.000249,7]
[424171156,1780626656000,-150.73672263,0.00025,5]
[424171140,1780626656000,-150.0,0.00024658,7]
[424171172,1780626656000,-623.76733779,0.00025,2]
[424171173,1780626656000,-599.71455908,0.00025,2]
[424171184,1780626656000,-999.63696878,0.00025,2]
[424171211,1780626656000,-152.0,0.00025187,3]
[424171212,1780626656000,-152.0,0.00025187,3]
[424171217,1780626656000,-152.0,0.00025187,3]
[424171219,1780626656000,-152.0,0.00025187,3]
[424171221,1780626656000,-151.50063506,0.00025187,3]
[424171220,1780626656000,-152.0,0.00025187,3]
[424171218,1780626656000,-152.0,0.00025187,3]
[424171226,1780626656000,-151.0,0.00025187,3]
[424171223,1780626656000,-151.0,0.00025187,3]
[424171222,1780626656000,-151.0,0.00025187,3]
[424171227,1780626656000,-151.0,0.00025187,3]
[424171228,1780626656000,-151.0,0.00025187,3]
[424171213,1780626656000,-152.0,0.00025187,3]
[424171225,1780626656000,-151.0,0.00025187,3]
[424171237,1780626656000,-528.5,0.00025234,30]
[424171236,1780626656000,-1548.0,0.00025187,3]
[424171229,1780626656000,-151.0,0.00025187,3]
[424171238,1780626656000,-17709.0,0.00025316,2]
[424171231,1780626656000,-160.7841719,0.00025187,3]
[424171232,1780626656000,-155.0,0.00025187,3]
[424171239,1780626656000,-4191.47684915,0.00025319,2]
[424171234,1780626656000,-166.0,0.00025187,3]
[424171230,1780626656000,-151.0,0.00025187,3]
[424171233,1780626656000,-304.23217184,0.00025187,3]
[424171235,1780626656000,-166.0,0.00025187,3]
[424171181,1780626656000,-740.73520161,0.00025,2]